bitfinex/quotes_ETHUSD_20250517
["timestamp","ask_amount","ask_price","bid_price","bid_amount"]
[1747495139547,4.04131372,2474.5,2474.2,1.17019644]
[1747495140149,4.04098549,2474.7,2474.3,0.55]
[1747495140378,4.04081134,2474.8,2474.3,0.55]
[1747495140582,4.04081134,2474.8,2474.5,0.55]
[1747495140788,4.04090756,2474.7,2474.5,0.55]
[1747495141090,4.04115789,2474.6,2474.5,7.68]
[1747495141491,4.04122044,2474.5,2474.4,8.06519644]
[1747495142283,4.04122044,2474.5,2474.4,0.38619644]
[1747495142683,12.51532044,2474.5,2474.4,0.38619644]
[1747495142884,31.55033878,2474.5,2474.4,0.38619644]
[1747495143974,39.22933878,2474.5,2474.4,0.38619644]
[1747495144166,39.22933878,2474.5,2473.6,7.679]
[1747495144167,0.758,2474.3,2473.6,0.38619644]
[1747495144485,4.04252738,2473.7,2473.6,0.38619644]
[1747495145556,7.675,2473.9,2473.6,0.38619644]
[1747495145776,11.71732593,2473.9,2473.6,0.38619644]
[1747495146006,4.04238294,2473.8,2473.5,0.38619644]
[1747495146165,4.04238294,2473.8,2473.5,3.49750184]
[1747495146493,4.04269081,2473.6,2473.5,3.49750184]
[1747495146788,4.04269081,2473.6,2473.5,11.17750184]
[1747495147493,4.04269081,2473.6,2473.5,3.49750184]
[1747495147792,4.04269081,2473.6,2473.5,11.17750184]
[1747495148001,4.04269081,2473.6,2473.5,0.38619644]
[1747495148597,4.04318117,2473.3,2473.2,0.48160647]
[1747495150581,4.04350814,2473.1,2473.0,8.4453]
[1747495151386,4.04350814,2473.1,2473.0,7.68]
[1747495151703,9.08,2473.7,2473.3,4.59311253]
[1747495151879,4.04246447,2473.8,2473.3,0.55]
[1747495152196,4.04246447,2473.8,2473.4,0.38586009]
[1747495152414,4.04246447,2473.8,2473.5,7.676]
[1747495153483,4.04196884,2474.1,2473.6,5.36740514]
[1747495153786,12.47128258,2474.7,2474.0,0.55]
[1747495153991,4.04131029,2474.5,2474.1,7.676]
[1747495155298,4.04131029,2474.5,2474.1,8.98027648]
[1747495155876,4.0411244,2474.6,2474.1,13.02201891]
[1747495156077,9.08,2475.1,2474.2,1.36521569]
[1747495156277,4.0402244,2475.2,2474.7,0.55]
[1747495156477,11.03501834,2475.9,2474.9,0.55]
[1747495156478,0.7543,2475.8,2474.9,0.55]
[1747495156712,0.7543,2475.8,2475.1,4.59018548]
[1747495156713,4.03915579,2475.8,2475.1,4.59018548]
[1747495156914,8.4293,2476.4,2475.4,0.55]
[1747495157115,8.4293,2476.4,2475.2,0.7748]
[1747495157116,1.95501834,2476.1,2475.2,0.7748]
[1747495157283,4.03956499,2475.6,2475.3,7.676]
[1747495157489,4.03922287,2475.8,2475.4,0.55]
[1747495157714,4.03939033,2475.7,2475.4,0.55]
[1747495159691,4.03840915,2476.3,2475.6,4.58935278]
[1747495159892,4.03856676,2476.2,2475.7,4.03918931]
[1747495160216,7.674,2476.5,2475.7,4.03918931]
[1747495160217,4.03809985,2476.5,2475.8,12.26306709]
[1747495160516,4.03826307,2476.4,2475.9,0.55]
[1747495160716,7.675,2476.8,2476.1,0.55]
[1747495160923,7.675,2476.8,2476.0,0.7592]
[1747495161094,4.038446,2476.2,2476.1,7.674]
[1747495161416,4.03818188,2476.4,2476.1,7.674]
[1747495162319,4.038446,2476.2,2476.1,7.674]
[1747495163109,7.675,2476.8,2476.1,7.674]
[1747495163110,4.03777738,2476.7,2476.1,7.674]
[1747495163285,4.03832382,2476.3,2476.1,7.674]
[1747495163484,4.03828923,2476.3,2476.1,7.674]
[1747495163929,4.038446,2476.2,2476.1,7.674]
[1747495164108,7.675,2476.6,2476.1,7.674]
[1747495164109,4.03801497,2476.5,2476.1,7.674]
[1747495164314,4.03823956,2476.4,2476.1,7.674]
[1747495164617,4.03755345,2476.8,2476.4,0.55]
[1747495164814,4.03767081,2476.7,2476.4,0.55]
[1747495164999,4.03767081,2476.7,2476.3,0.55]
[1747495165812,7.677,2476.9,2476.1,0.6453614]
[1747495166127,4.03791204,2476.6,2476.2,8.221]
[1747495166893,4.03764508,2476.7,2476.3,0.8222]
[1747495167238,4.03764508,2476.7,2476.4,0.55]
[1747495167592,0.7771,2477.1,2476.4,0.55]
[1747495167819,4.03747047,2476.8,2476.4,1.49469827]
[1747495168024,4.03747047,2476.8,2476.4,1.45432]
[1747495168225,4.03747047,2476.8,2476.4,1.49469712]
[1747495168420,7.672,2477.1,2476.4,1.49469712]
[1747495168421,4.03718353,2477.0,2476.4,1.49469712]
[1747495168622,9.8837,2477.4,2476.5,4.03785855]
[1747495168831,4.03723721,2477.0,2476.6,1.84421786]
[1747495169016,4.03723721,2477.0,2476.7,7.67]
[1747495169216,4.03703344,2477.1,2476.7,7.67]
[1747495169723,4.03706396,2477.1,2476.8,0.8002]
[1747495169925,4.03714461,2477.0,2476.8,0.8002]
[1747495170300,4.03714461,2477.0,2476.8,1.83164179]
[1747495170536,4.03730469,2476.9,2476.8,0.8002]
[1747495170837,4.03763071,2476.7,2476.6,0.55]
[1747495171054,4.03763071,2476.7,2476.5,7.67]
[1747495171210,4.03779374,2476.6,2476.5,7.67]
[1747495171810,4.03828292,2476.3,2476.2,18.2432]
[1747495172017,4.03828292,2476.3,2476.2,17.443]
[1747495172221,4.03828292,2476.3,2476.1,7.669]
[1747495172402,4.03828292,2476.3,2476.2,0.55]
[1747495172806,4.03828292,2476.3,2476.1,7.669]
[1747495173120,11.71102147,2476.5,2476.3,0.79]
[1747495173121,4.03802147,2476.5,2476.3,0.79]
[1747495173746,4.03811985,2476.4,2476.3,1.34]
[1747495174244,4.03836613,2476.3,2476.1,8.51592]
[1747495174429,4.038446,2476.2,2476.1,7.669]
[1747495174626,7.677,2476.6,2476.1,7.669]
[1747495174832,4.03812498,2476.4,2476.2,7.669]
[1747495175232,4.03811985,2476.4,2476.3,0.55]
[1747495177225,4.03801831,2476.5,2476.3,0.55]
[1747495177446,0.8305,2477.3,2476.5,0.55]
[1747495177774,7.67,2477.3,2476.9,0.79]
[1747495177924,7.67,2477.3,2477.0,7.669]
[1747495177925,4.03692046,2477.2,2477.0,7.669]
[1747495178558,7.677,2477.6,2477.1,4.5869473]
[1747495178761,4.03612722,2477.7,2477.1,5.38177945]
[1747495178925,4.03590818,2477.8,2477.4,0.55]
[1747495179252,9.8321,2478.2,2477.6,0.55]
[1747495179253,7.694,2478.1,2477.6,0.55]
[1747495179659,4.03597092,2477.8,2477.6,0.55]
[1747495180170,4.03658989,2477.4,2477.2,0.791]
[1747495180369,9.8321,2478.2,2477.6,0.55]
[1747495180571,4.03567537,2477.9,2477.2,1.00055947]
[1747495180863,4.03630058,2477.6,2477.3,8.242]
[1747495181681,4.03630058,2477.6,2477.3,0.55]
[1747495181966,4.0366528,2477.3,2477.2,8.242]
[1747495182570,4.0366528,2477.3,2477.2,7.692]
[1747495182778,4.0366528,2477.3,2477.2,8.242]
[1747495187275,4.0366528,2477.3,2477.2,0.55]
[1747495187576,4.0366528,2477.3,2477.2,8.241]
[1747495187783,4.03620009,2477.6,2477.2,8.62551794]
[1747495187944,4.03598487,2477.8,2477.4,0.7886]
[1747495188139,4.03616402,2477.6,2477.5,0.55]
[1747495188377,4.03616402,2477.6,2477.5,7.691]
[1747495189208,4.03567537,2477.9,2477.2,0.38451794]
[1747495189402,4.03648986,2477.4,2477.3,7.69]
[1747495190244,4.03641609,2477.5,2477.3,7.69]
[1747495190450,4.03641609,2477.5,2477.3,8.49745179]
[1747495191050,0.7849,2478.0,2477.4,0.55]
[1747495191270,4.03608155,2477.7,2477.4,0.55]
[1747495191662,4.03624286,2477.6,2477.4,0.55]
[1747495192461,4.0360498,2477.7,2477.5,0.7886]
[1747495193285,4.03616402,2477.6,2477.5,0.7886]
[1747495193476,4.03616402,2477.6,2477.5,8.24]
[1747495193994,0.8026,2477.9,2477.2,1.16161794]
[1747495194169,4.0366528,2477.3,2477.2,0.38451794]
[1747495194365,4.0366528,2477.3,2477.2,8.07451794]
[1747495194591,4.0366528,2477.3,2477.2,8.62451794]
[1747495195788,4.03600175,2477.7,2477.5,0.55]
[1747495195974,7.7,2478.1,2477.5,0.55]
[1747495195975,4.03616402,2477.6,2477.5,0.55]
[1747495196355,4.03632694,2477.5,2477.4,0.55]
[1747495196657,4.03632694,2477.5,2477.4,8.24]
[1747495196957,4.03632694,2477.5,2477.4,9.24963744]
[1747495197990,4.0361113,2477.7,2477.4,9.24963744]
[1747495198290,4.03583824,2477.8,2477.5,0.55]
[1747495199159,4.03602494,2477.7,2477.5,0.55]
[1747495199359,4.03616402,2477.6,2477.5,0.55]
[1747495200061,7.7,2478.1,2477.5,1.52312439]
[1747495200398,4.03591061,2477.8,2477.5,1.52312439]
[1747495201159,7.7,2478.1,2477.5,1.52312439]
[1747495201560,7.7,2478.1,2477.5,0.55]
[1747495201760,4.03598327,2477.8,2477.5,0.55]
[1747495202099,4.03570121,2477.9,2477.5,0.55]
[1747495202473,4.03589003,2477.8,2477.5,0.55]
[1747495202887,4.03589003,2477.8,2477.6,0.38476901]
[1747495203596,4.03567537,2477.9,2477.7,0.7755]
[1747495203997,4.03562415,2478.0,2477.7,0.7755]
[1747495204301,4.03562415,2478.0,2477.8,0.38476901]
[1747495204498,4.03562415,2478.0,2477.9,7.689]
[1747495204801,9.08,2478.7,2477.9,7.689]
[1747495204964,9.08,2478.7,2478.0,1.5828769]
[1747495205169,4.03516379,2478.3,2478.0,1.5828769]
[1747495205586,4.03519741,2478.2,2478.0,1.5828769]
[1747495205869,4.03522734,2478.2,2478.0,1.5828769]
[1747495206265,4.03516723,2478.3,2478.0,1.5828769]
[1747495206491,4.03523843,2478.2,2478.1,0.38476901]
[1747495208583,11.73123843,2478.2,2478.1,0.38476901]
[1747495208910,4.03523843,2478.2,2478.1,0.38476901]
[1747495209111,11.72923843,2478.2,2478.1,0.38476901]
[1747495209274,4.03567537,2477.9,2477.8,8.17060647]
[1747495211220,4.03567537,2477.9,2477.8,8.07492412]
[1747495213231,0.7705,2478.5,2477.9,0.8196]
[1747495213423,4.03525695,2478.2,2477.9,1.3696]
[1747495213822,4.0354864,2478.1,2478.0,7.694]
[1747495214018,4.0354864,2478.1,2477.8,1.24157718]
[1747495214019,4.03567537,2477.9,2477.8,1.24157718]
[1747495214210,4.03567537,2477.9,2477.8,8.07992412]
[1747495214406,4.03567537,2477.9,2477.8,0.38592412]
[1747495214741,4.03567537,2477.9,2477.8,0.48160647]
[1747495214912,4.80617537,2477.9,2477.8,0.48160647]
[1747495216435,21.88617537,2477.9,2477.8,0.48160647]
[1747495217552,4.03648986,2477.4,2477.3,0.3861915]
[1747495219238,21.89988986,2477.4,2477.3,0.3861915]
[1747495219426,4.03697872,2477.1,2477.0,0.48160647]
[1747495220004,12.82037872,2477.1,2477.0,0.48160647]
[1747495220504,20.52237872,2477.1,2477.0,0.48160647]
[1747495220843,20.52437872,2477.1,2477.0,0.48160647]
[1747495221626,33.56327318,2477.1,2477.0,0.48160647]
[1747495221851,33.56327318,2477.1,2476.1,8.4544]
[1747495221852,4.038446,2476.2,2476.1,8.4544]
[1747495222577,4.038446,2476.2,2476.0,0.48160647]
[1747495222578,4.0386091,2476.1,2476.0,0.48160647]
[1747495223343,4.82124927,2476.6,2476.0,0.48160647]
[1747495223344,8.4874,2476.6,2476.0,0.48160647]
[1747495223539,4.03818263,2476.4,2476.0,0.48160647]
[1747495223837,4.03780057,2476.6,2476.2,0.55]
[1747495224035,4.03780057,2476.6,2476.3,8.23317342]
[1747495224564,11.75071033,2476.7,2476.4,1.3332]
[1747495224744,4.03795679,2476.5,2476.4,0.7832]
[1747495229171,9.08,2477.1,2476.4,0.7832]
[1747495229172,4.03726313,2477.0,2476.5,4.03785633]
[1747495229338,4.03726313,2477.0,2476.5,4.07823149]
[1747495229539,4.0373767,2476.9,2476.6,0.8899393]
[1747495229754,4.03723317,2477.0,2476.6,0.8899393]
[1747495229939,13.11706779,2477.1,2476.7,0.8304]
[1747495230159,13.11706779,2477.1,2476.8,7.697]
[1747495230160,13.11705796,2477.1,2476.8,7.697]
[1747495230670,4.03730469,2476.9,2476.8,7.697]
[1747495231171,13.11705796,2477.1,2476.8,8.15975712]
[1747495232464,4.03705796,2477.1,2476.8,8.15975712]
[1747495232870,4.03642589,2477.5,2477.1,0.8304]
[1747495233245,4.03648929,2477.5,2477.1,0.8304]
[1747495233450,4.03648929,2477.5,2477.2,0.48674728]
[1747495233774,4.03648986,2477.4,2477.3,7.697]
[1747495233977,4.03623009,2477.6,2477.3,7.697]
[1747495234182,4.03600113,2477.7,2477.3,7.697]
[1747495234364,4.03600113,2477.7,2477.5,0.8139]
[1747495234770,4.85274496,2478.1,2477.6,0.55]
[1747495234771,4.03543888,2478.1,2477.6,0.55]
[1747495234945,4.03577987,2477.9,2477.6,0.55]
[1747495235746,4.03560245,2478.0,2477.6,0.55]
[1747495236587,4.03539513,2478.1,2477.6,4.58615213]
[1747495236789,9.08,2478.3,2477.9,0.8139]
[1747495236995,4.03489667,2478.4,2478.0,7.697]
[1747495237296,7.719,2478.5,2478.0,7.697]
[1747495237674,4.03477092,2478.5,2478.1,0.55]
[1747495237983,4.03477092,2478.5,2478.2,1.22824427]
[1747495238493,4.03477092,2478.5,2477.9,0.8139]
[1747495238494,4.03534101,2478.2,2477.9,0.8139]
[1747495238686,4.03534101,2478.2,2478.0,7.696]
[1747495239288,4.03537321,2478.1,2477.9,0.8139]
[1747495239596,4.03578359,2477.9,2477.7,7.715]
[1747495239956,4.03583824,2477.8,2477.5,0.7857]
[1747495240290,4.03609131,2477.7,2477.6,7.714]
[1747495240593,4.03616402,2477.6,2477.5,7.714]
[1747495243755,4.03591576,2477.8,2477.5,8.4854]
[1747495243956,7.714,2478.0,2477.6,0.8107]
[1747495244156,4.03562688,2478.0,2477.6,0.8107]
[1747495244370,0.7969,2478.4,2477.6,4.84682127]
[1747495244570,4.03542477,2478.1,2477.7,0.55]
[1747495244795,4.03542477,2478.1,2477.9,0.55]
[1747495244991,4.03542477,2478.1,2478.0,7.714]
[1747495245771,4.03508982,2478.3,2478.1,0.8107]
[1747495246292,20.83272113,2478.5,2478.1,0.8107]
[1747495246293,4.03518682,2478.2,2478.1,0.8107]
[1747495248403,4.0349049,2478.4,2478.1,0.8107]
[1747495248699,4.0349049,2478.4,2478.1,1.71817]
[1747495249299,4.03504548,2478.3,2478.1,1.71817]
[1747495250007,4.03494773,2478.4,2478.1,1.71817]
[1747495251000,9.84,2478.9,2478.2,0.55]
[1747495251199,4.03464028,2478.6,2478.2,0.55]
[1747495251421,4.03464028,2478.6,2478.3,0.63034456]
[1747495252782,4.03470764,2478.5,2478.3,0.63034456]
[1747495252978,4.03462711,2478.6,2478.3,0.63034456]
[1747495253422,4.0342101,2478.8,2478.3,0.63034456]
[1747495253597,4.03518682,2478.2,2478.1,0.8107]
[1747495253916,4.03518682,2478.2,2478.1,8.5227]
[1747495254121,4.03512117,2478.3,2478.1,8.5227]
[1747495254416,4.03512117,2478.3,2478.2,1.10370208]
[1747495254826,4.03534966,2478.1,2478.0,17.427]
[1747495255030,4.80980797,2478.7,2478.0,25.139]
[1747495255244,4.03521879,2478.2,2478.0,25.139]
[1747495255518,0.7753,2478.7,2478.0,25.139]
[1747495255733,8.4753,2478.7,2478.0,25.139]
[1747495255934,8.4753,2478.7,2478.0,27.84008821]
[1747495256083,4.03482769,2478.5,2478.1,0.55]
[1747495256300,11.74450821,2478.7,2478.2,0.7822]
[1747495257040,4.03464114,2478.6,2478.3,0.55]
[1747495257342,4.03459531,2478.6,2478.3,0.55]
[1747495258136,4.0348612,2478.4,2478.3,0.55]
[1747495258527,4.03494879,2478.4,2478.2,1.3322]
[1747495259810,4.03494879,2478.4,2478.3,7.712]
[1747495260142,4.03494879,2478.4,2478.3,8.61642]
[1747495260342,4.0347121,2478.5,2478.0,20.12808821]
[1747495260506,4.03518682,2478.2,2478.1,7.712]
[1747495263146,4.03534966,2478.1,2478.0,17.427]
[1747495264020,4.03616402,2477.6,2477.5,1.25620647]
[1747495264218,4.03616402,2477.6,2477.5,8.96820647]
[1747495264423,4.03616402,2477.6,2477.5,12.44155173]
[1747495264735,4.03607365,2477.7,2477.5,12.44155173]
[1747495265545,4.03581715,2477.9,2477.5,12.44155173]
[1747495265751,4.03559562,2478.0,2477.5,12.44155173]
[1747495266045,4.03559562,2478.0,2477.6,0.55]
[1747495266223,4.03559562,2478.0,2477.7,1.70278324]
[1747495266664,9.913,2478.3,2477.7,1.70278324]
[1747495266665,4.03578358,2477.9,2477.7,1.70278324]
[1747495266871,4.03616402,2477.6,2477.5,0.48160647]
[1747495267025,4.0358879,2477.8,2477.5,8.19360647]
[1747495267229,4.03615536,2477.7,2477.5,10.89695173]
[1747495268157,4.03616402,2477.6,2477.5,10.89695173]
[1747495268560,4.03616402,2477.6,2477.5,8.19360647]
[1747495268940,4.03616402,2477.6,2477.5,0.48160647]
[1747495269141,4.03616402,2477.6,2477.5,8.19360647]
[1747495270124,4.03616402,2477.6,2477.5,0.48160647]
[1747495270325,4.86336402,2477.6,2477.5,0.48160647]
[1747495271891,12.86336402,2477.6,2477.5,0.48160647]
[1747495272955,4.0374677,2476.8,2476.7,7.694]
[1747495273133,4.0374677,2476.8,2476.7,10.28202]
[1747495273327,4.03737864,2476.9,2476.7,10.28202]
[1747495273537,4.03719096,2477.0,2476.7,10.28202]
[1747495274172,4.03730544,2476.9,2476.7,10.28202]
[1747495275071,4.03662106,2477.4,2476.9,0.82]
[1747495275248,4.03672157,2477.3,2476.9,0.82]
[1747495275445,4.03672157,2477.3,2477.0,0.48977668]
[1747495275641,4.03672157,2477.3,2477.1,0.55]
[1747495275879,4.03667719,2477.3,2477.1,0.55]
[1747495276072,4.03667719,2477.3,2477.2,7.695]
[1747495276256,4.03655961,2477.4,2477.2,7.695]
[1747495276456,4.03655961,2477.4,2477.2,8.5195]
[1747495276656,4.03615176,2477.7,2477.3,0.82]
[1747495276859,4.03624202,2477.6,2477.3,0.82]
[1747495278892,13.11552743,2478.0,2477.4,4.79177758]
[1747495279185,4.03568382,2477.9,2477.6,0.55]
[1747495279389,4.03576141,2477.9,2477.7,7.695]
[1747495280196,12.83206816,2478.4,2477.5,1.28947776]
[1747495280490,4.03600113,2477.7,2477.6,7.695]
[1747495283392,4.03632694,2477.5,2477.4,7.695]
[1747495283991,4.03607238,2477.7,2477.4,7.695]
[1747495283992,4.0360807,2477.7,2477.4,7.695]
[1747495284293,4.0360807,2477.7,2477.5,0.7553]
[1747495285092,4.0360807,2477.7,2477.5,1.60033]
[1747495285469,4.03591241,2477.8,2477.5,1.60033]
[1747495285668,4.03610518,2477.7,2477.5,1.60033]
[1747495285870,4.03616402,2477.6,2477.1,0.55]
[1747495286078,4.03641082,2477.5,2477.3,0.7553]
[1747495286276,4.03624457,2477.6,2477.3,0.7553]
[1747495286701,4.03605241,2477.7,2477.3,0.7553]
[1747495287125,4.03605241,2477.7,2477.4,0.38569432]
[1747495287298,4.03605241,2477.7,2477.4,1.6729691]
[1747495288898,4.03605241,2477.7,2477.5,0.38569432]
[1747495291833,4.03616402,2477.6,2477.5,0.38569432]
[1747495292032,4.03616402,2477.6,2477.5,8.08069432]
[1747495293247,4.03616402,2477.6,2477.5,0.38569432]
[1747495293803,29.64436402,2477.6,2477.5,0.38569432]
[1747495294000,29.64436402,2477.6,2477.2,0.48160647]
[1747495294001,4.0366528,2477.3,2477.2,0.48160647]
[1747495294195,4.8468528,2477.3,2477.2,0.48160647]
[1747495294938,12.8468528,2477.3,2477.2,0.48160647]
[1747495295843,20.5678528,2477.3,2477.2,0.48160647]
[1747495296147,4.03758495,2476.8,2476.5,7.695]
[1747495296350,4.03758495,2476.8,2476.5,8.86831849]
[1747495297676,4.03758495,2476.8,2476.6,0.38572729]
[1747495298465,16.797,2477.1,2476.7,0.55]
[1747495298794,4.03616402,2477.6,2476.9,4.58715827]
[1747495298971,4.03642118,2477.5,2477.1,0.7851]
[1747495299581,4.03609376,2477.7,2477.2,4.03681575]
[1747495299997,4.03609376,2477.7,2477.2,4.07717914]
[1747495300146,4.03609376,2477.7,2477.1,0.7851]
[1747495300344,4.03625218,2477.6,2477.2,0.94220619]
[1747495300878,4.03636977,2477.5,2477.2,1.32773631]
[1747495301238,4.03617849,2477.6,2477.2,1.32773631]
[1747495301848,4.03617849,2477.6,2477.2,5.36454455]
[1747495302282,4.03617849,2477.6,2477.2,1.32773631]
[1747495302488,4.03605878,2477.7,2477.3,1.00050225]
[1747495302672,13.11590334,2477.8,2477.3,5.03711965]
[1747495303048,4.03607115,2477.7,2477.3,1.00050225]
[1747495303350,13.11590334,2477.8,2477.3,5.03713832]
[1747495303351,13.11590939,2477.8,2477.3,5.03713832]
[1747495303547,13.11590939,2477.8,2477.4,0.7851]
[1747495303752,4.03590939,2477.8,2477.5,7.725]
[1747495304782,4.03603214,2477.7,2477.5,7.725]
[1747495305679,4.03578836,2477.9,2477.5,7.725]
[1747495305880,4.03574135,2477.9,2477.5,7.765361]
[1747495306045,4.03574135,2477.9,2477.5,11.80165003]
[1747495306248,4.03574135,2477.9,2477.6,1.32631945]
[1747495306662,4.03574135,2477.9,2477.7,0.55]
[1747495307076,4.03600113,2477.7,2477.6,1.32631945]
[1747495307275,4.03632694,2477.5,2477.4,1.3351]
[1747495307489,4.03632694,2477.5,2477.3,0.61497213]
[1747495307674,4.03648986,2477.4,2477.3,0.55]
[1747495307875,4.03648986,2477.4,2477.3,8.274]
[1747495308054,4.0366528,2477.3,2477.2,0.7851]
[1747495308385,4.0366528,2477.3,2477.1,0.48160647]
[1747495308386,4.86561575,2477.2,2477.1,0.48160647]
[1747495308780,4.03681575,2477.2,2477.1,0.48160647]
[1747495309152,4.03707677,2477.1,2476.8,0.38582463]
[1747495309349,4.03707677,2477.1,2476.8,1.60057556]
[1747495309662,4.03726034,2477.0,2476.8,1.60057556]
[1747495309964,4.03730469,2476.9,2476.8,1.60057556]
[1747495310283,12.86610469,2476.9,2476.8,0.38582463]
[1747495310987,4.03779374,2476.6,2476.5,0.48160647]
[1747495313306,4.03828292,2476.3,2476.2,7.725]
[1747495314909,4.03804,2476.5,2476.2,10.26535511]
[1747495315121,7.719,2476.7,2476.2,10.26535511]
[1747495315264,4.03781394,2476.6,2476.2,10.26535511]
[1747495315470,4.03805017,2476.5,2476.2,10.26535511]
[1747495315669,11.74149329,2476.8,2476.3,0.55]
[1747495315972,4.03811985,2476.4,2476.3,3.80323706]
[1747495316179,4.03832027,2476.3,2476.1,17.67855111]
[1747495316496,4.03832027,2476.3,2476.2,7.726]
[1747495318493,16.784,2476.8,2476.2,7.726]
[1747495318702,4.03820464,2476.4,2476.2,7.726]
[1747495320126,4.03796608,2476.5,2476.3,0.55]
[1747495320422,16.784,2476.8,2476.3,3.14545511]
[1747495320626,4.03774064,2476.7,2476.4,0.7977]
[1747495320780,4.03780035,2476.6,2476.4,0.7977]
[1747495321200,16.775,2476.8,2476.4,0.7977]
[1747495321375,13.11759543,2476.8,2476.4,4.8358173]
[1747495321582,4.03769658,2476.7,2476.5,0.79812724]
[1747495321891,4.03769658,2476.7,2476.4,0.7977]
[1747495322614,4.03755867,2476.8,2476.4,0.7977]
[1747495322927,9.08,2477.1,2476.4,0.83807832]
[1747495323106,4.03697895,2477.1,2476.8,0.55]
[1747495323307,4.03697895,2477.1,2476.9,7.727]
[1747495323621,4.0371417,2477.0,2476.9,7.727]
[1747495323773,7.702,2477.4,2476.9,7.727]
[1747495324278,4.0371417,2477.0,2476.9,7.727]
[1747495324477,4.0366528,2477.3,2476.9,8.51759665]
[1747495324779,4.03681676,2477.2,2476.9,7.727]
[1747495325380,4.03681676,2477.2,2476.9,8.4808]
[1747495325575,0.7947,2477.5,2477.0,0.55]
[1747495325782,4.036783,2477.3,2477.0,0.55]
[1747495326322,4.03653536,2477.4,2477.0,0.55]
[1747495326535,4.03667122,2477.3,2477.1,1.30680007]
[1747495327531,7.693,2477.6,2477.1,1.30680007]
[1747495327844,4.0371417,2477.0,2476.9,0.7538]
[1747495328044,4.03772736,2476.7,2476.2,4.8284754]
[1747495328242,4.03795679,2476.5,2476.4,0.7588]
[1747495328441,4.03709672,2477.1,2476.4,1.68629284]
[1747495328626,4.03730469,2476.9,2476.5,0.55]
[1747495328944,4.03713403,2477.1,2476.7,1.3088]
[1747495329144,4.03713403,2477.1,2476.8,7.726]
[1747495329645,4.03688597,2477.2,2476.8,7.726]
[1747495329819,4.03688597,2477.2,2476.9,1.85723948]
[1747495330137,7.698,2477.7,2477.1,0.55]
[1747495330343,4.03649437,2477.4,2477.1,0.55]
[1747495330642,4.03665878,2477.3,2477.1,0.55]
[1747495330805,4.03665878,2477.3,2477.0,0.7588]
[1747495330806,4.03697872,2477.1,2477.0,7.703]
[1747495333235,4.0371417,2477.0,2476.9,7.703]
[1747495333436,4.03706555,2477.1,2476.9,7.703]
[1747495335539,4.03688905,2477.2,2476.9,7.703]
[1747495335736,4.03633092,2477.5,2477.0,0.7588]
[1747495336038,4.03652255,2477.4,2477.1,0.55]
[1747495336554,4.03665956,2477.3,2477.1,0.55]
[1747495336742,4.03665956,2477.3,2477.1,1.93743849]
[1747495337645,4.03681575,2477.2,2477.1,1.38743849]
[1747495337858,4.03693621,2477.2,2477.0,7.703]
[1747495338520,4.0374677,2476.8,2476.7,0.48160647]
[1747495338723,4.0374677,2476.8,2476.7,0.46767742]
[1747495339078,4.8615677,2476.8,2476.7,0.46767742]
[1747495340539,4.03835608,2476.3,2476.0,8.4618]
[1747495341011,4.038446,2476.2,2475.7,4.88855621]
[1747495341211,4.038446,2476.2,2476.0,7.703]
[1747495341954,4.03893533,2475.9,2475.8,0.7588]
[1747495342165,4.03859142,2476.2,2475.9,7.703]
[1747495342370,0.8241,2476.4,2475.9,7.703]
[1747495342665,0.8241,2476.4,2476.0,8.4618]
[1747495342666,4.03845639,2476.2,2476.0,8.4618]
[1747495342819,4.03845639,2476.2,2476.1,7.703]
[1747495343267,7.709,2476.5,2476.1,8.54918]
[1747495343423,11.74702505,2476.5,2476.1,8.54918]
[1747495343764,11.74702505,2476.5,2476.1,7.703]
[1747495343765,11.74701836,2476.5,2476.1,7.703]
[1747495343965,4.03823701,2476.4,2476.1,7.703]
[1747495344862,4.03801836,2476.5,2476.1,7.703]
[1747495345176,9.08,2476.7,2476.5,4.03780079]
[1747495345314,7.714,2477.1,2476.7,4.58753456]
[1747495345513,4.03689453,2477.2,2476.7,4.58755868]
[1747495345738,4.03689453,2477.2,2476.8,0.8147]
[1747495346023,4.03700237,2477.1,2476.8,0.8147]
[1747495346617,4.03716599,2477.0,2476.8,0.8147]
[1747495348053,4.03705186,2477.1,2476.8,0.8147]
[1747495348255,4.03688922,2477.2,2476.8,2.12524831]
[1747495349364,4.03684398,2477.2,2476.9,0.55]
[1747495349541,4.03714049,2477.1,2476.9,0.55]
[1747495350556,4.0367142,2477.3,2476.9,0.55]
[1747495350762,4.03665439,2477.3,2476.9,0.55]
[1747495351061,4.03665439,2477.3,2476.9,1.62501384]
[1747495351668,4.03665439,2477.3,2477.0,0.38489682]
[1747495351838,4.03665439,2477.3,2477.1,7.703]
[1747495352834,7.711,2477.6,2477.1,7.703]
[1747495353136,4.03666185,2477.3,2477.1,7.703]
[1747495353362,4.03654227,2477.4,2477.1,7.703]
[1747495354069,4.03681575,2477.2,2477.1,7.703]
[1747495354265,4.03698262,2477.1,2476.9,1.62501384]
[1747495354469,4.03690439,2477.2,2477.0,7.703]
[1747495354763,4.03689143,2477.2,2477.0,0.55]
[1747495354955,4.03689143,2477.2,2477.1,7.703]
[1747495355669,0.8033,2477.5,2476.3,17.437]
[1747495355965,4.03773946,2476.7,2476.6,7.703]
[1747495356164,4.03779374,2476.6,2476.5,8.34324609]
[1747495356354,4.03779374,2476.6,2476.5,0.64024609]
[1747495357568,4.03779374,2476.6,2476.3,17.437]
[1747495357569,4.03795679,2476.5,2476.4,0.38510595]
[1747495359058,4.03779374,2476.6,2476.4,0.38510595]
[1747495359668,0.8033,2477.0,2476.5,0.55]
[1747495359870,4.03702845,2477.1,2476.6,0.8560742]
[1747495360078,0.8033,2477.4,2476.8,0.55]
[1747495360383,4.03684536,2477.2,2476.9,0.8157]
[1747495360539,4.03672195,2477.3,2477.0,0.55]
[1747495360740,4.03656181,2477.4,2477.0,0.55]
[1747495361051,4.03669575,2477.3,2477.0,0.55]
[1747495362138,4.03669575,2477.3,2477.1,0.38479739]
[1747495362367,4.03669575,2477.3,2477.2,7.714]
[1747495364877,4.03639828,2477.5,2476.5,8.64024609]